bitfinex-derivatives/quotes_SOLF0:USTF0_20250105
["timestamp","ask_amount","ask_price","bid_price","bid_amount"]
[1736058137526,9.5193223,216.8,216.73,14.9761223]
[1736058138124,7.2125223,216.8,216.73,14.9761223]
[1736058138326,2.3069,216.79,216.73,14.9761223]
[1736058139427,2.3069,216.79,216.73,7.7636]
[1736058139727,2.3073,216.75,216.69,12.0604223]
[1736058139932,7.2125223,216.76,216.63,4.418]
[1736058140134,7.2125223,216.76,216.68,7.2125223]
[1736058140329,2.3075,216.73,216.68,9.5206223]
[1736058140630,8.98635148,216.82,216.72,7.2125223]
[1736058140631,2.54,216.82,216.72,7.2125223]
[1736058140828,2.54,216.82,216.75,7.2125223]
[1736058142433,2.307,216.79,216.75,7.2125223]
[1736058144237,7.2125223,216.83,216.75,7.2125223]
[1736058144537,2.3067,216.81,216.75,9.5198223]
[1736058146327,9.5192223,216.81,216.75,9.5198223]
[1736058146531,9.5192223,216.81,216.75,2.3073]
[1736058147130,7.2125223,216.81,216.75,2.3073]
[1736058147332,2.3068,216.8,216.75,2.3073]
[1736058148141,2.3073,216.76,216.71,1.4322]
[1736058149537,2.3073,216.76,216.72,7.2125223]
[1736058150233,7.2125223,216.79,216.72,7.2125223]
[1736058150536,2.3071,216.78,216.72,9.5201223]
[1736058150737,2.54,216.81,216.74,7.2125223]
[1736058150938,7.2125223,216.84,216.76,9.5197223]
[1736058151239,7.2125223,216.84,216.76,7.2125223]
[1736058152338,7.2125223,216.84,216.78,7.2125223]
[1736058152535,2.3066,216.82,216.78,7.2125223]
[1736058153638,2.3066,216.82,216.77,2.3071]
[1736058154339,2.3066,216.82,216.76,7.2125223]
[1736058155439,2.3066,216.82,216.76,9.5197223]
[1736058156036,2.3067,216.81,216.74,9.5198223]
[1736058156238,7.2125223,216.82,216.74,12.0598223]
[1736058157441,2.3068,216.8,216.74,12.0598223]
[1736058162142,1.4069,216.85,216.76,7.2125223]
[1736058162348,2.3066,216.82,216.77,2.3071]
[1736058162644,3.44833091,216.86,216.78,7.2125223]
[1736058162844,3.44833091,216.86,216.82,2.3066]
[1736058164647,10.66085321,216.86,216.82,2.3066]
[1736058164847,3.44833091,216.86,216.82,2.3066]
[1736058165149,10.66085321,216.86,216.82,2.3066]
[1736058165945,3.44833091,216.86,216.82,2.3066]
[1736058166142,10.66085321,216.86,216.82,2.3066]
[1736058166342,3.44833091,216.86,216.83,2.3065]
[1736058166949,7.2125223,216.91,216.85,2.3062]
[1736058167842,7.2125223,216.91,216.84,7.2125223]
[1736058168150,7.2125223,216.91,216.86,2.3062]
[1736058169350,7.2125223,216.89,216.84,2.3063]
[1736058169545,7.2125223,216.89,216.82,7.2125223]
[1736058169746,7.2125223,216.87,216.82,7.2125223]
[1736058170948,7.2125223,216.87,216.82,9.5191223]
[1736058171342,9.5186223,216.87,216.82,2.3066]
[1736058171541,7.2125223,216.87,216.81,2.3067]
[1736058172652,2.3062,216.86,216.81,2.3067]
[1736058176354,9.5186223,216.88,216.81,2.3067]
[1736058177154,2.3061,216.87,216.81,2.3067]
[1736058177454,2.54,216.95,216.85,2.3062]
[1736058177752,7.2125223,216.9,216.82,7.2125223]
[1736058178952,7.2125223,216.88,216.83,2.3064]
[1736058179157,7.2125223,216.88,216.8,5.369]
[1736058179352,7.2125223,216.88,216.8,10.0415223]
[1736058179557,7.2125223,216.86,216.8,12.3483223]
[1736058180453,2.3064,216.84,216.79,2.54]
[1736058180655,9.5189223,216.84,216.78,12.0594223]
[1736058181349,2.3064,216.84,216.79,2.3069]
[1736058182258,9.5188223,216.85,216.79,2.3069]
[1736058184056,9.5188223,216.85,216.78,9.7525223]
[1736058184250,7.2125223,216.85,216.78,9.7525223]
[1736058184650,9.5187223,216.87,216.8,7.2125223]
[1736058184858,9.5187223,216.87,216.82,2.3066]
[1736058186452,2.3059,216.89,216.82,2.3066]
[1736058186658,7.2125223,216.88,216.83,2.3065]
[1736058188362,9.5185223,216.88,216.82,2.3066]
[1736058193667,7.2125223,216.88,216.82,2.3066]
[1736058193858,2.3061,216.87,216.82,2.3066]
[1736058194265,2.3061,216.87,216.81,2.3067]
[1736058194866,7.2125223,216.86,216.81,2.3067]
[1736058195672,9.5187223,216.86,216.81,2.3067]
[1736058196168,9.5187223,216.86,216.8,7.2125223]
[1736058196960,2.3062,216.86,216.8,9.5193223]
[1736058197163,9.5187223,216.86,216.8,9.5193223]
[1736058200068,7.2125223,216.86,216.8,2.3068]
[1736058200271,2.3063,216.85,216.8,2.3068]
[1736058202373,9.5187223,216.86,216.81,2.3067]
[1736058205281,2.3063,216.85,216.79,12.4267223]
[1736058205484,2.3063,216.85,216.79,10.1199223]
[1736058206586,2.3063,216.85,216.8,2.3068]
[1736058208794,2.3064,216.84,216.79,10.1199223]
[1736058209393,2.3064,216.84,216.79,12.4268223]
[1736058211791,2.3064,216.84,216.79,9.5194223]
[1736058211995,2.3062,216.86,216.82,2.3066]
[1736058212189,7.2125223,216.85,216.78,2.54]
[1736058213296,2.3064,216.84,216.78,4.8469]
[1736058214991,2.3064,216.84,216.79,2.3069]
[1736058216897,2.3063,216.86,216.8,2.3068]
[1736058217098,9.5188223,216.86,216.8,2.3068]
[1736058221294,2.3063,216.86,216.8,2.3068]
[1736058222498,8.6853223,216.89,216.81,7.2125223]
[1736058222702,7.2125223,216.92,216.83,7.2125223]
[1736058222904,3.46018203,216.93,216.85,7.2125223]
[1736058223100,7.2125223,216.92,216.85,7.2125223]
[1736058223804,9.5181223,216.92,216.86,2.3061]
[1736058224004,7.2125223,216.9,216.86,2.3061]
[1736058224505,2.54,216.95,216.86,2.3061]
[1736058224704,7.2125223,216.9,216.86,2.3061]
[1736058226201,2.3056,216.91,216.86,2.3061]
[1736058226407,7.2125223,216.9,216.86,2.3061]
[1736058226607,9.5181223,216.91,216.86,2.3061]
[1736058228598,7.2125223,216.89,216.81,7.2125223]
[1736058228805,7.2125223,216.87,216.81,2.54]
[1736058229807,2.3062,216.86,216.81,2.3067]
[1736058237510,7.2125223,216.87,216.81,2.3067]
[1736058238611,2.3062,216.86,216.81,2.3067]
[1736058238811,7.2125223,216.85,216.81,2.3067]
[1736058239111,7.2125223,216.85,216.78,2.54]
[1736058239311,7.2125223,216.83,216.78,2.54]
[1736058239605,7.2125223,216.83,216.76,2.54]
[1736058240306,7.2125223,216.81,216.71,2.8514]
[1736058240514,7.2125223,216.81,216.74,7.2125223]
[1736058241408,9.5192223,216.81,216.76,2.3072]
[1736058249114,2.3068,216.8,216.76,2.3072]
[1736058252524,9.5192223,216.81,216.76,2.3072]
[1736058262435,1.4323,216.89,216.76,7.2125223]
[1736058262635,7.2125223,216.84,216.78,7.2125223]
[1736058263538,7.2125223,216.84,216.8,2.3068]
[1736058263741,7.2125223,216.82,216.8,2.3068]
[1736058264533,7.2125223,216.82,216.76,7.2125223]
[1736058264734,7.2125223,216.82,216.79,2.3069]
[1736058272546,7.2125223,216.82,216.78,2.307]
[1736058278253,7.2125223,216.8,216.78,2.307]
[1736058281655,7.2125223,216.82,216.77,2.3071]
[1736058281856,9.5191223,216.82,216.77,2.3071]
[1736058285159,7.2125223,216.82,216.74,7.2125223]
[1736058285354,2.3067,216.81,216.76,2.3072]
[1736058287751,7.2125223,216.8,216.76,2.3072]
[1736058288459,7.2125223,216.78,216.71,2.8514]
[1736058288762,7.2125223,216.78,216.71,12.6039223]
[1736058289455,2.3071,216.77,216.73,2.3075]
[1736058289755,2.3071,216.77,216.71,12.6039223]
[1736058289756,7.2125223,216.78,216.71,10.0639223]
[1736058290257,7.2125223,216.76,216.71,10.0639223]
[1736058290754,7.2125223,216.76,216.71,7.2125223]
[1736058291348,7.2125223,216.76,216.67,2.54]
[1736058291553,7.2125223,216.76,216.69,7.2125223]
[1736058292558,7.2125223,216.74,216.67,2.54]
[1736058292857,7.2125223,216.74,216.68,7.2125223]
[1736058293356,2.3074,216.75,216.66,2.9309]
[1736058293357,7.2125223,216.72,216.66,2.9309]
[1736058293550,7.2125223,216.7,216.66,2.9309]
[1736058293749,7.2125223,216.7,216.66,1.5006]
[1736058294150,7.2125223,216.7,216.65,2.3083]
[1736058298154,7.2125223,216.7,216.66,2.3082]
[1736058300462,7.2125223,216.7,216.63,9.7525223]
[1736058300757,7.2125223,216.7,216.63,7.2125223]
[1736058300965,7.2125223,216.7,216.62,2.54]
[1736058301462,7.2125223,216.7,216.65,2.3083]
[1736058302263,7.2125223,216.7,216.66,2.3083]
[1736058302565,2.3076,216.73,216.64,7.2125223]
[1736058302757,7.2125223,216.72,216.66,7.2125223]
[1736058303261,59.38588318,216.77,216.72,2.3076]
[1736058303262,7.2125223,216.74,216.72,2.3076]
[1736058303655,7.2125223,216.74,216.68,7.2125223]
[1736058303860,7.2125223,216.74,216.7,2.3078]
[1736058304057,7.2125223,216.74,216.68,7.2125223]
[1736058304259,7.2125223,216.74,216.67,2.54]
[1736058304459,7.2125223,216.72,216.67,2.54]
[1736058305468,7.2125223,216.72,216.69,2.3079]
[1736058308165,7.2125223,216.72,216.67,2.54]
[1736058308471,57.87768318,216.77,216.64,7.2125223]
[1736058308472,7.2125223,216.7,216.64,7.2125223]
[1736058309669,7.2125223,216.7,216.66,2.3083]
[1736058314676,7.2125223,216.68,216.66,2.3083]
[1736058319983,7.2125223,216.7,216.66,2.3083]
[1736058328188,2.3078,216.71,216.66,2.3083]
[1736058328383,7.2125223,216.69,216.66,2.3083]
[1736058334990,7.2125223,216.69,216.63,7.2125223]
[1736058335192,7.2125223,216.69,216.67,2.3082]
[1736058348902,2.3077,216.72,216.67,2.3082]
[1736058349102,7.2125223,216.69,216.67,2.3082]
[1736058355707,7.2125223,216.69,216.62,9.7525223]
[1736058357413,7.2125223,216.69,216.66,2.3082]
[1736058359212,3.7193,216.75,216.69,2.3079]
[1736058359401,60.41768318,216.77,216.66,7.2125223]
[1736058359608,7.2125223,216.75,216.68,7.2125223]
[1736058360409,7.2125223,216.75,216.71,2.3077]
[1736058364610,65.09020548,216.77,216.71,7.2125223]
[1736058365709,65.09020548,216.77,216.74,2.3073]
[1736058367110,57.87768318,216.77,216.71,7.2125223]
[1736058367413,57.87768318,216.77,216.68,4.2785]
[1736058367414,7.2125223,216.83,216.75,7.2125223]
[1736058367710,2.3063,216.85,216.79,2.3069]
[1736058367901,7.2125223,216.85,216.77,7.2125223]
[1736058368101,7.2125223,216.85,216.77,9.7525223]
[1736058371303,7.2125223,216.83,216.77,9.7525223]
[1736058371614,7.2125223,216.83,216.77,2.54]
[1736058372309,7.2125223,216.82,216.77,2.54]
[1736058372513,7.2125223,216.82,216.79,2.3068]
[1736058375010,7.2125223,216.82,216.8,2.3068]
[1736058375415,7.2125223,216.84,216.8,2.3068]
[1736058377413,7.2125223,216.84,216.82,2.3066]
[1736058377609,7.2125223,216.86,216.82,2.3066]
[1736058378420,7.2125223,216.86,216.79,7.2125223]
[1736058378716,7.2125223,216.84,216.79,7.2125223]
[1736058378912,7.2125223,216.84,216.78,2.9017]
[1736058379109,7.2125223,216.84,216.8,2.3068]
[1736058379510,7.2125223,216.82,216.68,1.3842]
[1736058379716,7.2125223,216.79,216.76,2.3072]
[1736058380111,7.2125223,216.79,216.73,7.2125223]
[1736058380314,7.2125223,216.81,216.75,7.2125223]
[1736058380518,7.2125223,216.81,216.77,2.3071]
[1736058381111,3.44805792,216.87,216.75,7.2125223]
[1736058381319,7.2125223,216.84,216.8,2.3067]
[1736058383820,7.2125223,216.84,216.77,7.2125223]
[1736058384013,7.2125223,216.82,216.78,2.3069]
[1736058384616,7.2125223,216.82,216.76,2.9188]
[1736058384817,7.2125223,216.82,216.76,5.2259]
[1736058385017,7.2125223,216.8,216.76,5.2259]
[1736058385918,7.2125223,216.8,216.76,2.3071]
[1736058389822,9.5193223,216.8,216.74,2.3074]
[1736058391224,9.5193223,216.8,216.72,9.7525223]
[1736058391424,9.5193223,216.8,216.75,2.3073]
[1736058392421,7.2125223,216.78,216.64,2.8347]
[1736058392631,7.2125223,216.76,216.73,2.3074]
[1736058396938,7.2125223,216.76,216.74,2.3074]
[1736058397335,7.2125223,216.78,216.74,2.3074]
[1736058400150,2.3068,216.8,216.74,2.3074]
[1736058400348,7.2125223,216.79,216.74,2.3074]
[1736058404345,7.2125223,216.79,216.72,7.2125223]
[1736058404546,7.2125223,216.79,216.75,2.3073]
[1736058408453,7.2125223,216.79,216.72,7.2125223]
[1736058408650,7.2125223,216.81,216.77,2.3071]
[1736058410860,2.3066,216.82,216.77,2.3071]
[1736058412459,7.2125223,216.83,216.79,2.3069]
[1736058412758,7.2125223,216.83,216.76,9.7525223]
[1736058414359,9.5188223,216.85,216.79,2.3068]
[1736058416556,2.3062,216.86,216.81,2.3067]
[1736058416767,9.5187223,216.86,216.81,2.3067]
[1736058417157,9.5187223,216.86,216.78,7.2125223]
[1736058417158,7.2125223,216.86,216.78,7.2125223]
[1736058417358,2.3063,216.85,216.8,2.3068]
[1736058419659,7.2125223,216.82,216.78,2.3069]
[1736058419863,7.2125223,216.8,216.73,7.2125223]
[1736058420064,7.2125223,216.78,216.71,14.1818223]
[1736058420564,7.2125223,216.78,216.71,6.9693]
[1736058420759,7.2125223,216.78,216.71,14.1818223]
[1736058421066,7.2125223,216.78,216.74,2.3074]
[1736058424057,7.2125223,216.83,216.77,2.307]
[1736058424266,7.2125223,216.83,216.75,7.2125223]
[1736058424571,7.2125223,216.79,216.74,2.3074]
[1736058424766,7.2125223,216.79,216.71,14.1818223]
[1736058425367,7.2125223,216.79,216.74,2.3073]
[1736058426762,7.2125223,216.79,216.71,14.1818223]
[1736058426969,7.2125223,216.79,216.75,2.3073]
[1736058428167,7.2125223,216.79,216.76,2.3072]
[1736058434474,2.3067,216.81,216.76,2.3072]
[1736058434669,7.2125223,216.79,216.76,2.3072]
[1736058444282,7.2125223,216.79,216.72,9.7525223]
[1736058444482,7.2125223,216.79,216.72,2.54]
[1736058445487,7.2125223,216.79,216.76,2.3072]
[1736058448289,7.2125223,216.79,216.74,2.3073]
[1736058448489,2.3067,216.81,216.72,2.54]
[1736058448689,7.2125223,216.78,216.72,2.54]
[1736058449488,7.2125223,216.78,216.75,2.3073]
[1736058450385,7.2125223,216.8,216.77,2.307]
[1736058450591,9.7525223,216.82,216.73,7.2125223]
[1736058451285,7.2125223,216.82,216.73,7.2125223]
[1736058451590,7.2125223,216.82,216.78,2.307]
[1736058457597,9.5191223,216.82,216.78,2.307]
[1736058458197,9.5191223,216.82,216.75,7.2125223]
[1736058458401,9.5191223,216.82,216.77,2.3071]
[1736058458700,7.2125223,216.8,216.77,2.3071]
[1736058463004,7.2125223,216.78,216.73,2.3075]
[1736058463399,7.2125223,216.78,216.72,2.54]
[1736058463703,7.2125223,216.76,216.71,3.0135]
[1736058463898,7.2125223,216.76,216.7,7.2125223]
[1736058464199,2.3073,216.75,216.68,9.7525223]
[1736058464705,7.2125223,216.74,216.66,1.4624]
[1736058464997,7.2125223,216.72,216.66,1.4624]
[1736058466402,9.5202223,216.72,216.66,2.3083]
[1736058478609,7.2125223,216.72,216.66,2.3083]
[1736058478809,2.3078,216.71,216.65,10.0380223]
[1736058479110,7.2125223,216.7,216.65,10.9067223]
[1736058479507,7.2125223,216.7,216.65,9.5209223]
[1736058480910,7.2125223,216.7,216.65,7.2125223]
[1736058481103,7.2125223,216.7,216.66,2.3083]
[1736058482912,2.3078,216.71,216.66,2.3083]
[1736058484015,7.2125223,216.72,216.65,7.2125223]
[1736058484215,7.2125223,216.72,216.68,2.308]
[1736058484717,9.5200223,216.74,216.68,2.308]
[1736058485216,9.5200223,216.74,216.67,7.2125223]
[1736058485217,9.5200223,216.74,216.69,2.308]
[1736058488718,2.3076,216.73,216.67,9.5206223]
[1736058488920,2.3076,216.73,216.67,7.2125223]
[1736058489118,7.2125223,216.72,216.5,128.078054]
[1736058489312,9.5208223,216.66,216.58,2.3091]
[1736058489517,9.5208223,216.66,216.55,2.54]
[1736058489716,9.5208223,216.66,216.57,7.2125223]
[1736058489918,7.2125223,216.64,216.57,7.2125223]
[1736058490417,7.2125223,216.64,216.6,2.3089]
[1736058495026,7.2125223,216.62,216.57,2.3092]
[1736058498825,7.2125223,216.62,216.55,7.2125223]
[1736058498826,7.2125223,216.6,216.55,2.3094]
[1736058499030,7.2125223,216.6,216.54,2.54]
[1736058500530,7.2125223,216.6,216.56,2.3093]
[1736058500728,7.2125223,216.62,216.55,7.2125223]
[1736058501325,2.8921,216.7,216.61,7.2125223]
[1736058501528,7.2125223,216.7,216.63,7.2125223]
[1736058502330,7.2125223,216.7,216.65,2.3084]
[1736058502530,7.2125223,216.7,216.63,7.2125223]
[1736058503428,7.2125223,216.7,216.66,2.3082]
[1736058509533,9.5202223,216.72,216.66,2.3082]
[1736058510333,2.3078,216.71,216.66,2.3082]
[1736058510626,7.2125223,216.72,216.68,2.3081]
[1736058517737,7.2125223,216.7,216.65,2.54]
[1736058519835,9.5204223,216.7,216.65,4.8484]
[1736058521940,9.5204223,216.7,216.65,2.3084]
[1736058527841,7.2125223,216.7,216.65,2.3084]
[1736058528237,1.4569,216.75,216.65,7.2125223]
[1736058528238,7.2125223,216.72,216.65,7.2125223]
[1736058528440,7.2125223,216.72,216.69,2.308]
[1736058533631,7.2125223,216.71,216.69,2.308]
[1736058534937,7.2125223,216.71,216.65,7.2125223]
[1736058535142,7.2125223,216.71,216.68,2.3081]
[1736058538140,9.5201223,216.73,216.68,2.3081]
[1736058542246,2.3077,216.72,216.68,2.3081]
[1736058547449,2.3077,216.72,216.65,7.2125223]
[1736058547653,2.3077,216.72,216.66,2.3082]
[1736058548353,2.3077,216.72,216.65,7.2125223]
[1736058548556,2.3077,216.72,216.67,2.3082]
[1736058558661,61.20075023,216.77,216.72,2.3076]
[1736058559462,63.50795023,216.77,216.72,2.3076]
[1736058559760,7.2125223,216.75,216.68,9.7525223]
[1736058559963,7.2125223,216.73,216.68,4.848]
[1736058560757,7.2125223,216.73,216.69,2.308]
[1736058563764,7.2125223,216.75,216.69,7.2125223]
[1736058563959,2.3073,216.76,216.71,2.3077]
[1736058565963,7.2125223,216.75,216.71,2.3077]
[1736058567061,7.2125223,216.75,216.69,2.9347]
[1736058567364,7.2125223,216.75,216.69,2.3079]
[1736058568561,2.3075,216.74,216.69,2.3079]
[1736058569163,53.98822793,216.77,216.69,7.2125223]
[1736058569364,61.20075023,216.77,216.69,7.2125223]
[1736058569564,61.20075023,216.77,216.68,2.54]
[1736058569766,7.2125223,216.75,216.68,9.7525223]
[1736058570270,53.98822793,216.77,216.68,9.7525223]
[1736058570470,7.2125223,216.75,216.71,2.3077]
[1736058572062,2.307,216.79,216.7,7.2125223]
[1736058572364,7.2125223,216.8,216.72,7.2125223]
[1736058572772,7.2125223,216.8,216.76,2.3072]
[1736058572973,7.2125223,216.8,216.72,7.2125223]
[1736058573176,7.2125223,216.8,216.73,2.54]
[1736058573474,7.2125223,216.8,216.74,7.2125223]
[1736058574071,7.2125223,216.8,216.75,2.3072]
[1736058574284,7.2125223,216.8,216.74,7.2125223]
[1736058575570,7.2125223,216.8,216.76,2.3071]
[1736058576677,7.2125223,216.8,216.73,2.54]
[1736058576877,7.2125223,216.76,216.72,2.3076]
[1736058585977,7.2125223,216.76,216.7,7.2125223]
[1736058586281,7.2125223,216.76,216.73,2.3075]
[1736058587284,7.2125223,216.78,216.73,2.3075]
[1736058594185,9.5195223,216.78,216.73,2.3075]
[1736058594989,2.3072,216.76,216.7,7.2125223]
[1736058595289,7.2125223,216.76,216.69,2.9362]
[1736058596191,7.2125223,216.76,216.68,7.2125223]
[1736058596592,2.3075,216.74,216.7,2.3079]
[1736058599592,9.5200223,216.74,216.68,7.2125223]
[1736058599800,9.5200223,216.74,216.68,9.5205223]
[1736058602103,2.3075,216.74,216.68,9.5205223]
[1736058602298,2.3075,216.74,216.69,2.3079]
[1736058603599,8.6683223,216.77,216.7,7.2125223]
[1736058603804,8.6683223,216.77,216.72,2.3076]
[1736058604003,1.4075,216.82,216.72,7.2125223]
[1736058604200,7.2125223,216.8,216.72,7.2125223]
[1736058604801,51.25268548,216.81,216.72,7.2125223]
[1736058605004,7.2125223,216.8,216.72,7.2125223]
[1736058605202,2.307,216.78,216.72,9.5201223]
[1736058605396,7.2125223,216.76,216.7,2.54]
[1736058606497,9.5198223,216.76,216.71,2.3078]
[1736058609402,7.2125223,216.76,216.72,2.3076]
[1736058610202,9.5196223,216.78,216.72,2.3076]
[1736058610702,7.2125223,216.78,216.72,2.3076]
[1736058610905,2.3071,216.77,216.72,2.3076]
[1736058615406,2.307,216.79,216.74,2.3074]
[1736058615604,7.2125223,216.8,216.73,7.2125223]
[1736058616309,7.2125223,216.8,216.75,2.3073]
[1736058617305,9.5193223,216.8,216.75,2.3073]
[1736058618203,2.3068,216.8,216.75,2.3073]
[1736058620809,7.2125223,216.77,216.73,2.3074]
[1736058621111,7.2125223,216.75,216.71,2.9483]
[1736058622512,7.2125223,216.75,216.71,5.256]
[1736058623809,9.5198223,216.76,216.71,5.256]
[1736058625315,7.2125223,216.78,216.72,2.3076]
[1736058625612,7.2125223,216.78,216.71,10.1608223]
[1736058625812,7.2125223,216.78,216.74,2.3074]
[1736058628312,2.54,216.8,216.73,7.2125223]
[1736058628512,7.2125223,216.8,216.75,7.2125223]
[1736058629012,51.24419738,216.84,216.75,7.2125223]
[1736058629217,7.2125223,216.81,216.75,7.2125223]
[1736058629412,7.2125223,216.81,216.77,2.3071]
[1736058630112,7.2125223,216.81,216.75,7.2125223]
[1736058630318,9.5192223,216.81,216.75,9.5198223]
[1736058630807,9.5192223,216.81,216.75,2.3073]
[1736058631715,9.5192223,216.81,216.76,2.3072]
[1736058632512,7.2125223,216.81,216.78,2.307]
[1736058637121,9.5190223,216.83,216.78,2.307]
[1736058637419,9.5190223,216.83,216.75,7.2125223]
[1736058637619,2.3066,216.82,216.76,2.3071]
[1736058637820,2.3066,216.82,216.75,7.2125223]
[1736058638620,9.5191223,216.82,216.75,7.2125223]
[1736058639422,7.2125223,216.82,216.71,4.3968]
[1736058639623,2.3067,216.81,216.75,7.2125223]
[1736058640521,2.3067,216.81,216.76,2.3072]
[1736058640927,2.3067,216.81,216.77,2.3071]
[1736058644825,2.54,216.86,216.75,9.7525223]
[1736058644826,2.3056,216.92,216.86,2.3061]
[1736058645025,157.9966469,216.94,216.86,7.2125223]
[1736058645528,7.2125223,216.95,216.86,7.2125223]
[1736058646021,2.3055,216.92,216.86,7.2125223]
[1736058646220,7.2125223,216.91,216.85,4.8462]
[1736058646423,7.2125223,216.89,216.82,7.2125223]
[1736058646620,7.2125223,216.89,216.83,2.54]
[1736058646825,2.54,216.95,216.83,2.54]
[1736058647121,7.2125223,216.88,216.83,2.54]
[1736058648924,2.3059,216.89,216.83,9.7525223]
[1736058651621,7.2125223,216.86,216.81,2.54]
[1736058651821,7.2125223,216.84,216.79,2.54]
[1736058652021,7.2125223,216.84,216.78,2.54]
[1736058652228,9.5189223,216.84,216.78,2.54]
[1736058653427,2.3064,216.84,216.78,4.847]
[1736058653722,2.3064,216.84,216.78,2.54]
[1736058654521,2.3064,216.84,216.79,2.3069]
[1736058655126,2.3064,216.84,216.78,2.54]
[1736058655317,2.3064,216.84,216.78,4.847]
[1736058655517,7.2125223,216.85,216.78,4.847]
[1736058655721,2.3065,216.83,216.78,4.847]
[1736058655928,7.2125223,216.83,216.78,2.54]
[1736058657526,2.3066,216.82,216.77,7.2125223]
[1736058657726,2.3066,216.82,216.76,2.3071]
[1736058657924,2.3066,216.82,216.76,4.8471]
[1736058660131,2.3066,216.82,216.77,2.3071]
[1736058661233,2.3066,216.82,216.77,9.5196223]
[1736058661629,2.54,216.9,216.76,2.54]
[1736058661630,157.9966469,216.95,216.81,7.2125223]
[1736058661835,7.2125223,216.92,216.84,7.2125223]
[1736058662131,2.3058,216.9,216.84,7.2125223]
[1736058662334,7.2125223,216.9,216.82,9.7525223]
[1736058663036,2.3059,216.89,216.82,9.7525223]
[1736058663429,2.3059,216.89,216.82,2.54]
[1736058663635,2.3059,216.89,216.83,7.2125223]
[1736058665938,7.2125223,216.9,216.83,7.2125223]
[1736058666138,2.306,216.88,216.83,7.2125223]
[1736058667237,2.306,216.88,216.82,4.8466]
[1736058667435,2.306,216.88,216.83,7.2125223]
[1736058669835,7.2125223,216.9,216.83,7.2125223]
[1736058670542,2.3056,216.91,216.85,7.2125223]
[1736058670739,7.2125223,216.92,216.86,2.3062]
[1736058672134,7.2125223,216.92,216.82,2.54]
[1736058672135,7.2125223,216.9,216.82,2.54]
[1736058672336,7.2125223,216.9,216.83,9.7525223]
[1736058672638,1.446,216.93,216.85,7.2125223]
[1736058672839,7.2125223,216.92,216.85,7.2125223]
[1736058673039,7.2125223,216.92,216.83,9.7525223]
[1736058673436,2.3058,216.89,216.84,2.3064]
[1736058675944,7.2125223,216.91,216.83,9.7525223]
[1736058676143,2.3059,216.88,216.83,9.7525223]
[1736058677047,2.3059,216.88,216.83,12.0590223]
[1736058679850,7.2125223,216.91,216.86,2.3061]
[1736058680350,7.2125223,216.91,216.83,9.7525223]
[1736058681453,2.306,216.88,216.83,12.0590223]
[1736058681747,7.2125223,216.89,216.83,2.54]
[1736058681952,7.2125223,216.87,216.81,7.2125223]
[1736058682154,2.3063,216.85,216.81,7.2125223]
[1736058682849,7.2125223,216.85,216.79,9.7525223]
[1736058683056,2.3065,216.83,216.79,7.2125223]
[1736058684751,7.2125223,216.85,216.79,7.2125223]
[1736058685049,2.3066,216.82,216.79,7.2125223]
[1736058685249,7.2125223,216.85,216.79,7.2125223]
[1736058685451,2.3065,216.83,216.79,7.2125223]
[1736058687355,2.3067,216.81,216.77,7.2125223]
[1736058687656,7.2125223,216.83,216.77,7.2125223]
[1736058688253,2.3066,216.82,216.77,7.2125223]
[1736058688556,7.2125223,216.84,216.77,7.2125223]
[1736058689150,1.446,216.93,216.82,7.2125223]
[1736058689151,3.986,216.93,216.82,7.2125223]
[1736058689350,7.2125223,216.9,216.82,7.2125223]
[1736058689958,2.306,216.88,216.82,7.2125223]
[1736058690859,7.2125223,216.9,216.82,7.2125223]
[1736058691056,9.5183223,216.9,216.82,7.2125223]
[1736058691258,7.2125223,216.9,216.83,2.3065]
[1736058692458,2.306,216.88,216.83,2.3065]
[1736058696258,2.3057,216.9,216.85,2.3062]
[1736058696662,7.2125223,216.92,216.84,7.2125223]
[1736058697062,2.3055,216.93,216.87,2.3061]
[1736058697262,2.3055,216.93,216.86,7.2125223]
[1736058697650,2.3055,216.93,216.86,9.7525223]
[1736058698460,2.3055,216.93,216.86,12.0586223]
[1736058700957,2.3055,216.93,216.87,2.306]
[1736058702761,7.2125223,216.92,216.87,2.306]
[1736058702963,7.2125223,216.92,216.86,4.8462]
[1736058703766,7.2125223,216.88,216.82,2.9051]
[1736058704063,2.3062,216.86,216.82,5.4451]